[Event "Titled Tuesday Blitz July 26 Late 2022"]
[White "Pfreundt, Jakob"]
[Black "Todorovic, Bojan"]
[WhiteFideId "12918156"]
[BlackFideId "917087"]
[WhiteElo "2345"]
[BlackElo "2266"]
[Result "0-1"]
[Round "04"]
[TimeControl "180+1"]
[Date "2022.07.27"]
[WhiteClock "0:00:02"]
[BlackClock "0:00:35"]

1. Nf3 {[%clk 0:03:00]}  Nf6 {[%clk 0:02:58]} 2. d4 {[%clk 0:03:00]}  g6 {[%clk 0:02:57]} 3. g3 {[%clk 0:03:00]}  Bg7 {[%clk 0:02:57]} 4. Bg2 {[%clk 0:03:00]}  O-O {[%clk 0:02:57]} 5. O-O {[%clk 0:03:01]}  c6 {[%clk 0:02:55]} 6. c3 {[%clk 0:02:55]}  d6 {[%clk 0:02:51]} 7. Nbd2 {[%clk 0:02:50]}  Qa5 {[%clk 0:02:47]} 8. h3 {[%clk 0:02:44]}  e5 {[%clk 0:02:45]} 9. dxe5 {[%clk 0:02:41]}  dxe5 {[%clk 0:02:44]} 10. e4 {[%clk 0:02:41]}  Qc7 {[%clk 0:02:33]} 11. a4 {[%clk 0:02:38]}  a5 {[%clk 0:02:32]} 12. Qc2 {[%clk 0:02:25]}  Na6 {[%clk 0:02:29]} 13. Nc4 {[%clk 0:02:22]}  Nh5 {[%clk 0:02:09]} 14. Be3 {[%clk 0:02:17]}  f5 {[%clk 0:02:00]} 15. Nb6 {[%clk 0:01:52]}  Rb8 {[%clk 0:01:59]} 16. Qb3+ {[%clk 0:01:48]}  Kh8 {[%clk 0:01:57]} 17. Nxc8 {[%clk 0:01:48]}  Rbxc8 {[%clk 0:01:55]} 18. Ng5 {[%clk 0:01:41]}  f4 {[%clk 0:01:47]} 19. Bb6 {[%clk 0:01:08]}  Qe7 {[%clk 0:01:42]} 20. Ne6 {[%clk 0:01:03]}  Qf7 {[%clk 0:01:36]} 21. Kh2 {[%clk 0:00:42]}  f3 {[%clk 0:01:29]} 22. Bh1 {[%clk 0:00:40]}  Rce8 {[%clk 0:01:28]} 23. Nc5 {[%clk 0:00:39]}  Nxc5 {[%clk 0:01:17]} 24. Qxf7 {[%clk 0:00:39]}  Rxf7 {[%clk 0:01:17]} 25. Bxc5 {[%clk 0:00:39]}  Bf8 {[%clk 0:01:06]} 26. Bxf8 {[%clk 0:00:30]}  Rexf8 {[%clk 0:01:04]} 27. Rfd1 {[%clk 0:00:28]}  Ng7 {[%clk 0:01:03]} 28. Rd3 {[%clk 0:00:24]}  Ne6 {[%clk 0:01:02]} 29. h4 {[%clk 0:00:17]}  Nc5 {[%clk 0:01:01]} 30. Re3 {[%clk 0:00:17]}  Rd8 {[%clk 0:00:57]} 31. Rxf3 {[%clk 0:00:15]}  Rxf3 {[%clk 0:00:56]} 32. Bxf3 {[%clk 0:00:16]}  Rd2 {[%clk 0:00:56]} 33. Kg2 {[%clk 0:00:11]}  Nd3 {[%clk 0:00:53]} 34. Rf1 {[%clk 0:00:06]}  Rxb2 {[%clk 0:00:53]} 35. h5 {[%clk 0:00:06]}  Kg7 {[%clk 0:00:50]} 36. hxg6 {[%clk 0:00:05]}  hxg6 {[%clk 0:00:51]} 37. Bg4 {[%clk 0:00:04]}  Nc5 {[%clk 0:00:51]} 38. Rd1 {[%clk 0:00:03]}  Nxe4 {[%clk 0:00:49]} 39. Rd7+ {[%clk 0:00:02]}  Kf6 {[%clk 0:00:49]} 40. Kg1 {[%clk 0:00:02]}  Nxf2 {[%clk 0:00:45]} 41. Bf3 {[%clk 0:00:02]}  e4 {[%clk 0:00:44]} 42. Bg2 {[%clk 0:00:02]}  e3 {[%clk 0:00:43]} 43. Rd8 {[%clk 0:00:02]}  Ng4 {[%clk 0:00:38]} 44. Re8 {[%clk 0:00:02]}  e2 {[%clk 0:00:35]} 0-1


[Site "https://www.chess.com"]

[Event "Titled Tuesday Blitz July 26 Late 2022"]
[White "Prydun, Andriy"]
[Black "Kilpatrick, Callum"]
[WhiteFideId "14145898"]
[BlackFideId "414425"]
[WhiteElo "2063"]
[BlackElo "2351"]
[Result "1-0"]
[Round "04"]
[TimeControl "180+1"]
[Date "2022.07.27"]
[WhiteClock "0:00:08"]
[BlackClock "0:00:00"]

1. e4 {[%clk 0:03:00]}  e5 {[%clk 0:02:51]} 2. Nf3 {[%clk 0:03:00]}  Nc6 {[%clk 0:02:51]} 3. Nc3 {[%clk 0:02:59]}  Nf6 {[%clk 0:02:51]} 4. d4 {[%clk 0:02:59]}  exd4 {[%clk 0:02:51]} 5. Nxd4 {[%clk 0:03:00]}  Bb4 {[%clk 0:02:51]} 6. Nxc6 {[%clk 0:03:00]}  bxc6 {[%clk 0:02:52]} 7. Bd3 {[%clk 0:03:00]}  d5 {[%clk 0:02:52]} 8. exd5 {[%clk 0:02:45]}  cxd5 {[%clk 0:02:53]} 9. O-O {[%clk 0:02:43]}  O-O {[%clk 0:02:53]} 10. Bg5 {[%clk 0:02:41]}  c6 {[%clk 0:02:52]} 11. Qf3 {[%clk 0:02:38]}  h6 {[%clk 0:02:43]} 12. Bxf6 {[%clk 0:02:35]}  Qxf6 {[%clk 0:02:44]} 13. Qxf6 {[%clk 0:02:35]}  gxf6 {[%clk 0:02:41]} 14. Na4 {[%clk 0:02:30]}  Be6 {[%clk 0:02:31]} 15. c3 {[%clk 0:02:24]}  Bd6 {[%clk 0:02:31]} 16. b4 {[%clk 0:02:23]}  Kg7 {[%clk 0:02:20]} 17. a3 {[%clk 0:02:23]}  f5 {[%clk 0:02:17]} 18. Rfb1 {[%clk 0:02:13]}  Kf6 {[%clk 0:02:15]} 19. Ba6 {[%clk 0:02:11]}  Rg8 {[%clk 0:02:10]} 20. Nc5 {[%clk 0:02:08]}  Rg4 {[%clk 0:02:02]} 21. h3 {[%clk 0:01:56]}  Rg5 {[%clk 0:01:55]} 22. Ra2 {[%clk 0:01:41]}  Rag8 {[%clk 0:01:52]} 23. f3 {[%clk 0:01:38]}  f4 {[%clk 0:01:25]} 24. Nxe6 {[%clk 0:01:05]}  fxe6 {[%clk 0:01:23]} 25. Rd2 {[%clk 0:00:59]}  e5 {[%clk 0:01:01]} 26. Re1 {[%clk 0:00:49]}  Bc7 {[%clk 0:00:43]} 27. Bb7 {[%clk 0:00:47]}  Bb6+ {[%clk 0:00:42]} 28. Kf1 {[%clk 0:00:27]}  Be3 {[%clk 0:00:42]} 29. Rc2 {[%clk 0:00:27]}  e4 {[%clk 0:00:42]} 30. fxe4 {[%clk 0:00:25]}  dxe4 {[%clk 0:00:35]} 31. Bxc6 {[%clk 0:00:24]}  Ke5 {[%clk 0:00:33]} 32. Rd1 {[%clk 0:00:17]}  f3 {[%clk 0:00:30]} 33. Rd5+ {[%clk 0:00:16]}  Kf4 {[%clk 0:00:30]} 34. Rxg5 {[%clk 0:00:16]}  Rxg5 {[%clk 0:00:30]} 35. c4 {[%clk 0:00:11]}  Bd4 {[%clk 0:00:22]} 36. c5 {[%clk 0:00:10]}  Ke3 {[%clk 0:00:18]} 37. Bb7 {[%clk 0:00:07]}  Rf5 {[%clk 0:00:18]} 38. c6 {[%clk 0:00:06]}  Kd3 {[%clk 0:00:16]} 39. Ra2 {[%clk 0:00:05]}  f2 {[%clk 0:00:15]} 40. c7 {[%clk 0:00:04]}  Rf8 {[%clk 0:00:10]} 41. c8=Q {[%clk 0:00:04]}  Rxc8 {[%clk 0:00:10]} 42. Bxc8 {[%clk 0:00:05]}  e3 {[%clk 0:00:10]} 43. Bf5+ {[%clk 0:00:06]}  Kc3 {[%clk 0:00:11]} 44. Re2 {[%clk 0:00:06]}  Kb3 {[%clk 0:00:11]} 45. g4 {[%clk 0:00:05]}  Kxa3 {[%clk 0:00:11]} 46. h4 {[%clk 0:00:05]}  Kxb4 {[%clk 0:00:12]} 47. g5 {[%clk 0:00:06]}  hxg5 {[%clk 0:00:12]} 48. hxg5 {[%clk 0:00:07]}  a5 {[%clk 0:00:11]} 49. g6 {[%clk 0:00:07]}  a4 {[%clk 0:00:11]} 50. Be6 {[%clk 0:00:08]}  Kc3 {[%clk 0:00:08]} 51. Ra2 {[%clk 0:00:09]}  Kd3 {[%clk 0:00:08]} 52. Bg4 {[%clk 0:00:08]}  Bc3 {[%clk 0:00:02]} 53. Rxa4 {[%clk 0:00:08]}  Kd2 {[%clk 0:00:03]} 54. Be2 {[%clk 0:00:08]}  Kc1 {[%clk 0:00:00]} 55. Rg4 {[%clk 0:00:08]} 1-0


[Site "https://www.chess.com"]

[Event "Titled Tuesday Blitz July 26 Late 2022"]
[White "Rastbod, Ali"]
[Black "Danielyan, Vahe"]
[WhiteFideId "12567477"]
[BlackFideId "13304828"]
[WhiteElo "2135"]
[BlackElo "2419"]
[Result "1/2-1/2"]
[Round "04"]
[TimeControl "180+1"]
[Date "2022.07.27"]
[WhiteClock "0:00:06"]
[BlackClock "0:00:07"]

1. d4 {[%clk 0:02:57]}  g6 {[%clk 0:03:00]} 2. e4 {[%clk 0:02:56]}  Bg7 {[%clk 0:03:00]} 3. Nf3 {[%clk 0:02:56]}  a6 {[%clk 0:02:58]} 4. a4 {[%clk 0:02:56]}  d6 {[%clk 0:02:58]} 5. Nc3 {[%clk 0:02:50]}  Nf6 {[%clk 0:02:58]} 6. Be2 {[%clk 0:02:50]}  O-O {[%clk 0:02:58]} 7. O-O {[%clk 0:02:49]}  Nc6 {[%clk 0:02:58]} 8. d5 {[%clk 0:02:48]}  Nb4 {[%clk 0:02:58]} 9. a5 {[%clk 0:02:48]}  c5 {[%clk 0:02:57]} 10. Nd2 {[%clk 0:02:47]}  e6 {[%clk 0:02:55]} 11. Nc4 {[%clk 0:02:36]}  exd5 {[%clk 0:02:43]} 12. exd5 {[%clk 0:02:37]}  Bf5 {[%clk 0:02:43]} 13. Ne3 {[%clk 0:02:34]}  Qd7 {[%clk 0:02:36]} 14. Bf3 {[%clk 0:02:25]}  Rfe8 {[%clk 0:02:31]} 15. Re1 {[%clk 0:02:17]}  Rxe3 {[%clk 0:02:30]} 16. Bxe3 {[%clk 0:02:05]}  Nxc2 {[%clk 0:02:31]} 17. Bf4 {[%clk 0:02:05]}  Nxe1 {[%clk 0:02:28]} 18. Qxe1 {[%clk 0:02:06]}  Re8 {[%clk 0:02:28]} 19. Qd2 {[%clk 0:02:06]}  Bg4 {[%clk 0:02:22]} 20. Qd3 {[%clk 0:01:45]}  Nh5 {[%clk 0:02:12]} 21. Bxg4 {[%clk 0:01:39]}  Qxg4 {[%clk 0:02:13]} 22. Bxd6 {[%clk 0:01:39]}  Be5 {[%clk 0:02:13]} 23. Bxe5 {[%clk 0:01:37]}  Rxe5 {[%clk 0:02:14]} 24. f3 {[%clk 0:01:27]}  Qg5 {[%clk 0:02:08]} 25. Ne4 {[%clk 0:01:23]}  Rxd5 {[%clk 0:02:09]} 26. Qc3 {[%clk 0:01:17]}  Qe5 {[%clk 0:02:05]} 27. Qxe5 {[%clk 0:01:16]}  Rxe5 {[%clk 0:02:06]} 28. Rc1 {[%clk 0:01:16]}  Nf4 {[%clk 0:02:04]} 29. Rxc5 {[%clk 0:01:14]}  Re7 {[%clk 0:01:55]} 30. g4 {[%clk 0:00:33]}  Kg7 {[%clk 0:01:51]} 31. h4 {[%clk 0:00:32]}  Ne2+ {[%clk 0:01:39]} 32. Kf2 {[%clk 0:00:31]}  Nf4 {[%clk 0:01:40]} 33. Rc8 {[%clk 0:00:28]}  Nd3+ {[%clk 0:01:33]} 34. Kg3 {[%clk 0:00:28]}  f5 {[%clk 0:01:33]} 35. gxf5 {[%clk 0:00:28]}  gxf5 {[%clk 0:01:34]} 36. Nd6 {[%clk 0:00:28]}  Kf6 {[%clk 0:01:12]} 37. Rf8+ {[%clk 0:00:28]}  Ke6 {[%clk 0:01:09]} 38. Nxf5 {[%clk 0:00:27]}  Rc7 {[%clk 0:01:08]} 39. Nd4+ {[%clk 0:00:25]}  Kd5 {[%clk 0:01:07]} 40. Rd8+ {[%clk 0:00:25]}  Ke5 {[%clk 0:01:02]} 41. Nc6+ {[%clk 0:00:23]}  bxc6 {[%clk 0:00:42]} 42. Rxd3 {[%clk 0:00:24]}  c5 {[%clk 0:00:42]} 43. Rc3 {[%clk 0:00:19]}  Kd4 {[%clk 0:00:41]} 44. Rc2 {[%clk 0:00:19]}  c4 {[%clk 0:00:40]} 45. Kf2 {[%clk 0:00:18]}  Rc5 {[%clk 0:00:39]} 46. Rd2+ {[%clk 0:00:16]}  Ke5 {[%clk 0:00:39]} 47. Ke3 {[%clk 0:00:15]}  Rxa5 {[%clk 0:00:38]} 48. Rd7 {[%clk 0:00:16]}  Rb5 {[%clk 0:00:36]} 49. Re7+ {[%clk 0:00:16]}  Kd5 {[%clk 0:00:34]} 50. Rxh7 {[%clk 0:00:14]}  Rb3+ {[%clk 0:00:34]} 51. Kd2 {[%clk 0:00:11]}  Rxb2+ {[%clk 0:00:35]} 52. Kc1 {[%clk 0:00:12]}  Rf2 {[%clk 0:00:34]} 53. Ra7 {[%clk 0:00:11]}  Ra2 {[%clk 0:00:30]} 54. h5 {[%clk 0:00:10]}  Kd4 {[%clk 0:00:30]} 55. h6 {[%clk 0:00:10]}  Kd3 {[%clk 0:00:23]} 56. Kb1 {[%clk 0:00:09]}  Ra5 {[%clk 0:00:14]} 57. h7 {[%clk 0:00:06]}  Rb5+ {[%clk 0:00:14]} 58. Kc1 {[%clk 0:00:05]}  Rh5 {[%clk 0:00:15]} 59. Rxa6 {[%clk 0:00:05]}  Rh1+ {[%clk 0:00:15]} 60. Kb2 {[%clk 0:00:05]}  c3+ {[%clk 0:00:16]} 61. Ka2 {[%clk 0:00:06]}  Rxh7 {[%clk 0:00:15]} 62. Ka3 {[%clk 0:00:02]}  Kc2 {[%clk 0:00:15]} 63. Rc6 {[%clk 0:00:02]}  Ra7+ {[%clk 0:00:13]} 64. Kb4 {[%clk 0:00:02]}  Rb7+ {[%clk 0:00:11]} 65. Kc4 {[%clk 0:00:03]}  Kb2 {[%clk 0:00:12]} 66. Kd3 {[%clk 0:00:03]}  Rd7+ {[%clk 0:00:12]} 67. Ke4 {[%clk 0:00:03]}  c2 {[%clk 0:00:11]} 68. f4 {[%clk 0:00:04]}  Rb7 {[%clk 0:00:09]} 69. f5 {[%clk 0:00:03]}  Rb4+ {[%clk 0:00:06]} 70. Ke5 {[%clk 0:00:03]}  Rb5+ {[%clk 0:00:06]} 71. Ke6 {[%clk 0:00:03]}  Rb3 {[%clk 0:00:06]} 72. Rxc2+ {[%clk 0:00:02]}  Kxc2 {[%clk 0:00:06]} 73. f6 {[%clk 0:00:03]}  Kd3 {[%clk 0:00:05]} 74. f7 {[%clk 0:00:04]}  Rb8 {[%clk 0:00:06]} 75. Ke7 {[%clk 0:00:04]}  Ke4 {[%clk 0:00:06]} 76. f8=Q {[%clk 0:00:05]}  Rxf8 {[%clk 0:00:07]} 77. Kxf8 {[%clk 0:00:06]} 1/2-1/2


[Site "https://www.chess.com"]

[Event "Titled Tuesday Blitz July 26 Late 2022"]
[White "Roman, Rodrigo"]
[Black "Arencibia Monduy, Antonio"]
[WhiteFideId "3701220"]
[BlackFideId "3507939"]
[WhiteElo "2001"]
[BlackElo "2523"]
[Result "0-1"]
[Round "04"]
[TimeControl "180+1"]
[Date "2022.07.27"]
[WhiteClock "0:00:01"]
[BlackClock "0:00:23"]

1. e4 {[%clk 0:03:00]}  e6 {[%clk 0:02:59]} 2. d4 {[%clk 0:02:38]}  d5 {[%clk 0:02:53]} 3. Nc3 {[%clk 0:02:35]}  Bb4 {[%clk 0:02:51]} 4. e5 {[%clk 0:02:34]}  c5 {[%clk 0:02:50]} 5. a3 {[%clk 0:02:35]}  Bxc3+ {[%clk 0:02:47]} 6. bxc3 {[%clk 0:02:36]}  Ne7 {[%clk 0:02:45]} 7. Nf3 {[%clk 0:02:30]}  Nbc6 {[%clk 0:02:39]} 8. a4 {[%clk 0:02:27]}  Qa5 {[%clk 0:02:37]} 9. Bd2 {[%clk 0:02:25]}  Bd7 {[%clk 0:02:32]} 10. Bd3 {[%clk 0:02:18]}  c4 {[%clk 0:02:30]} 11. Be2 {[%clk 0:02:18]}  O-O {[%clk 0:02:24]} 12. h4 {[%clk 0:02:15]}  f6 {[%clk 0:02:22]} 13. exf6 {[%clk 0:02:13]}  Rxf6 {[%clk 0:02:22]} 14. Rb1 {[%clk 0:02:08]}  Qc7 {[%clk 0:02:19]} 15. Bg5 {[%clk 0:02:06]}  Rf7 {[%clk 0:02:17]} 16. h5 {[%clk 0:01:59]}  h6 {[%clk 0:02:17]} 17. Bh4 {[%clk 0:01:55]}  Nf5 {[%clk 0:02:13]} 18. Qd2 {[%clk 0:01:48]}  e5 {[%clk 0:02:10]} 19. dxe5 {[%clk 0:01:44]}  Nxe5 {[%clk 0:02:08]} 20. Nxe5 {[%clk 0:01:30]}  Qxe5 {[%clk 0:02:07]} 21. Rxb7 {[%clk 0:01:30]}  Re8 {[%clk 0:02:02]} 22. f4 {[%clk 0:01:15]}  Qe4 {[%clk 0:01:58]} 23. Bf2 {[%clk 0:01:10]}  Rfe7 {[%clk 0:01:51]} 24. Rxd7 {[%clk 0:01:05]}  Rxd7 {[%clk 0:01:49]} 25. Kf1 {[%clk 0:01:04]}  Rb7 {[%clk 0:01:46]} 26. Rh3 {[%clk 0:00:47]}  Rb1+ {[%clk 0:01:45]} 27. Be1 {[%clk 0:00:48]}  Ne3+ {[%clk 0:01:40]} 28. Rxe3 {[%clk 0:00:43]}  Qxe3 {[%clk 0:01:39]} 29. Qxe3 {[%clk 0:00:44]}  Rxe3 {[%clk 0:01:40]} 30. Kf2 {[%clk 0:00:45]}  Rxe1 {[%clk 0:01:38]} 31. Kxe3 {[%clk 0:00:45]}  Ra1 {[%clk 0:01:38]} 32. Kd4 {[%clk 0:00:43]}  Rxa4 {[%clk 0:01:37]} 33. Bf3 {[%clk 0:00:40]}  Ra2 {[%clk 0:01:26]} 34. Bxd5+ {[%clk 0:00:39]}  Kf8 {[%clk 0:01:26]} 35. Be4 {[%clk 0:00:40]}  Ra4 {[%clk 0:01:23]} 36. Bd5 {[%clk 0:00:39]}  Ke7 {[%clk 0:01:22]} 37. Bxc4 {[%clk 0:00:39]}  Kd6 {[%clk 0:01:22]} 38. g4 {[%clk 0:00:34]}  a5 {[%clk 0:01:21]} 39. g5 {[%clk 0:00:33]}  Ra1 {[%clk 0:01:19]} 40. Be2 {[%clk 0:00:18]}  a4 {[%clk 0:01:16]} 41. c4 {[%clk 0:00:16]}  a3 {[%clk 0:01:16]} 42. c5+ {[%clk 0:00:16]}  Kc7 {[%clk 0:01:14]} 43. Kc3 {[%clk 0:00:15]}  a2 {[%clk 0:01:10]} 44. Bc4 {[%clk 0:00:14]}  Rf1 {[%clk 0:01:02]} 45. Bxa2 {[%clk 0:00:14]}  Rxf4 {[%clk 0:01:02]} 46. gxh6 {[%clk 0:00:14]}  gxh6 {[%clk 0:01:02]} 47. Bc4 {[%clk 0:00:05]}  Kc6 {[%clk 0:00:52]} 48. Bd3 {[%clk 0:00:04]}  Kxc5 {[%clk 0:00:46]} 49. Kd2 {[%clk 0:00:04]}  Kd4 {[%clk 0:00:41]} 50. c3+ {[%clk 0:00:03]}  Kc5 {[%clk 0:00:39]} 51. Ke3 {[%clk 0:00:03]}  Rg4 {[%clk 0:00:38]} 52. Bf5 {[%clk 0:00:02]}  Rg3+ {[%clk 0:00:38]} 53. Kf4 {[%clk 0:00:02]}  Rg5 {[%clk 0:00:34]} 54. Bg6 {[%clk 0:00:01]}  Kc4 {[%clk 0:00:34]} 55. Kf3 {[%clk 0:00:01]}  Kxc3 {[%clk 0:00:35]} 56. Kf4 {[%clk 0:00:02]}  Kd4 {[%clk 0:00:35]} 57. Kf3 {[%clk 0:00:02]}  Ke5 {[%clk 0:00:36]} 58. Be8 {[%clk 0:00:01]}  Rg8 {[%clk 0:00:34]} 59. Bg6 {[%clk 0:00:01]}  Rf8+ {[%clk 0:00:34]} 60. Kg4 {[%clk 0:00:01]}  Rf4+ {[%clk 0:00:34]} 61. Kg3 {[%clk 0:00:01]}  Rb4 {[%clk 0:00:34]} 62. Kf3 {[%clk 0:00:02]}  Rf4+ {[%clk 0:00:31]} 63. Kg3 {[%clk 0:00:03]}  Rf6 {[%clk 0:00:31]} 64. Kg4 {[%clk 0:00:04]}  Kd4 {[%clk 0:00:31]} 65. Bf5 {[%clk 0:00:03]}  Ke3 {[%clk 0:00:30]} 66. Bd7 {[%clk 0:00:02]}  Rf4+ {[%clk 0:00:30]} 67. Kg3 {[%clk 0:00:02]}  Rd4 {[%clk 0:00:31]} 68. Be8 {[%clk 0:00:02]}  Rd1 {[%clk 0:00:28]} 69. Kg4 {[%clk 0:00:02]}  Rd5 {[%clk 0:00:25]} 70. Bf7 {[%clk 0:00:01]}  Rg5+ {[%clk 0:00:25]} 71. Kh4 {[%clk 0:00:02]}  Kf4 {[%clk 0:00:25]} 72. Be8 {[%clk 0:00:02]}  Rg1 {[%clk 0:00:24]} 73. Bc6 {[%clk 0:00:01]}  Rc1 {[%clk 0:00:23]} 0-1


[Site "https://www.chess.com"]

[Event "Titled Tuesday Blitz July 26 Late 2022"]
[White "Romanchuk, Viktor"]
[Black "Paravyan, David"]
[WhiteFideId "14109271"]
[BlackFideId "4194985"]
[WhiteElo "2242"]
[BlackElo "2569"]
[Result "0-1"]
[Round "04"]
[TimeControl "180+1"]
[Date "2022.07.26"]
[WhiteClock "0:01:05"]
[BlackClock "0:02:05"]

1. d4 {[%clk 0:03:00]}  Nf6 {[%clk 0:03:00]} 2. c4 {[%clk 0:03:00]}  g6 {[%clk 0:03:00]} 3. Nf3 {[%clk 0:02:59]}  Bg7 {[%clk 0:03:00]} 4. g3 {[%clk 0:02:58]}  c6 {[%clk 0:03:01]} 5. Bg2 {[%clk 0:02:56]}  d5 {[%clk 0:03:01]} 6. b3 {[%clk 0:02:50]}  O-O {[%clk 0:03:01]} 7. O-O {[%clk 0:02:50]}  Ne4 {[%clk 0:03:01]} 8. Bb2 {[%clk 0:02:50]}  a5 {[%clk 0:03:02]} 9. Nc3 {[%clk 0:02:49]}  Nxc3 {[%clk 0:03:01]} 10. Bxc3 {[%clk 0:02:49]}  Nd7 {[%clk 0:03:02]} 11. Rc1 {[%clk 0:02:36]}  Nb6 {[%clk 0:03:00]} 12. Bb2 {[%clk 0:02:02]}  a4 {[%clk 0:02:59]} 13. Ne5 {[%clk 0:01:54]}  Be6 {[%clk 0:02:53]} 14. Qd3 {[%clk 0:01:44]}  axb3 {[%clk 0:02:50]} 15. axb3 {[%clk 0:01:44]}  Bxe5 {[%clk 0:02:48]} 16. dxe5 {[%clk 0:01:43]}  dxc4 {[%clk 0:02:49]} 17. bxc4 {[%clk 0:01:43]}  Qxd3 {[%clk 0:02:46]} 18. exd3 {[%clk 0:01:42]}  Rfd8 {[%clk 0:02:46]} 19. Rfd1 {[%clk 0:01:35]}  Ra2 {[%clk 0:02:46]} 20. Bc3 {[%clk 0:01:31]}  Na4 {[%clk 0:02:45]} 21. Bb4 {[%clk 0:01:31]}  c5 {[%clk 0:02:37]} 22. Be1 {[%clk 0:01:26]}  Nb2 {[%clk 0:02:17]} 23. Rd2 {[%clk 0:01:18]}  Nxd3 {[%clk 0:02:08]} 24. Rcd1 {[%clk 0:01:04]}  Rxd2 {[%clk 0:02:07]} 25. Rxd2 {[%clk 0:01:05]}  Bxc4 {[%clk 0:02:05]} 0-1


[Site "https://www.chess.com"]

[Event "Titled Tuesday Blitz July 26 Late 2022"]
[White "Sarana, Alexey"]
[Black "Rustemov, Alexander"]
[WhiteFideId "24133795"]
[BlackFideId "4119002"]
[WhiteElo "2666"]
[BlackElo "2806"]
[Result "1-0"]
[Round "04"]
[TimeControl "180+1"]
[Date "2022.07.26"]
[WhiteClock "0:00:23"]
[BlackClock "0:00:02"]

1. c4 {[%clk 0:03:00]}  e6 {[%clk 0:02:55]} 2. Nc3 {[%clk 0:02:59]}  d5 {[%clk 0:02:56]} 3. d4 {[%clk 0:02:59]}  Be7 {[%clk 0:02:56]} 4. Nf3 {[%clk 0:02:56]}  Nf6 {[%clk 0:02:56]} 5. Bf4 {[%clk 0:02:56]}  O-O {[%clk 0:02:55]} 6. a3 {[%clk 0:02:56]}  Nbd7 {[%clk 0:02:43]} 7. Nb5 {[%clk 0:02:54]}  Ne8 {[%clk 0:02:43]} 8. e3 {[%clk 0:02:53]}  a6 {[%clk 0:02:42]} 9. Nc3 {[%clk 0:02:53]}  dxc4 {[%clk 0:02:39]} 10. Bxc4 {[%clk 0:02:54]}  b5 {[%clk 0:02:38]} 11. Be2 {[%clk 0:02:46]}  Bb7 {[%clk 0:02:36]} 12. b4 {[%clk 0:02:45]}  a5 {[%clk 0:02:25]} 13. Rb1 {[%clk 0:02:45]}  Nef6 {[%clk 0:02:00]} 14. Bxb5 {[%clk 0:02:35]}  axb4 {[%clk 0:01:56]} 15. axb4 {[%clk 0:02:35]}  Nb6 {[%clk 0:01:38]} 16. Be5 {[%clk 0:01:48]}  Nfd5 {[%clk 0:01:37]} 17. Ne2 {[%clk 0:01:01]}  Bxb4+ {[%clk 0:01:35]} 18. Kf1 {[%clk 0:01:01]}  c5 {[%clk 0:01:31]} 19. h4 {[%clk 0:00:58]}  Ba6 {[%clk 0:01:28]} 20. Bxa6 {[%clk 0:00:56]}  Rxa6 {[%clk 0:01:29]} 21. dxc5 {[%clk 0:00:56]}  Bxc5 {[%clk 0:01:29]} 22. Rh3 {[%clk 0:00:56]}  f6 {[%clk 0:01:22]} 23. Bd4 {[%clk 0:00:55]}  Bd6 {[%clk 0:01:16]} 24. e4 {[%clk 0:00:54]}  Nf4 {[%clk 0:01:04]} 25. Qb3 {[%clk 0:00:35]}  Qe7 {[%clk 0:00:39]} 26. Nxf4 {[%clk 0:00:30]}  Bxf4 {[%clk 0:00:38]} 27. Qb5 {[%clk 0:00:26]}  Rfa8 {[%clk 0:00:03]} 28. Bxb6 {[%clk 0:00:25]}  Ra2 {[%clk 0:00:03]} 29. Ne1 {[%clk 0:00:24]}  Qd6 {[%clk 0:00:02]} 30. Rd3 {[%clk 0:00:23]} 1-0


[Site "https://www.chess.com"]

[Event "Titled Tuesday Blitz July 26 Late 2022"]
[White "Sjugirov, Sanan"]
[Black "Peng, David Yu"]
[WhiteFideId "4189302"]
[BlackFideId "2605376"]
[WhiteElo "2609"]
[BlackElo "2166"]
[Result "1-0"]
[Round "04"]
[TimeControl "180+1"]
[Date "2022.07.26"]
[WhiteClock "0:02:16"]
[BlackClock "0:00:18"]

1. d4 {[%clk 0:03:00]}  Nf6 {[%clk 0:02:57]} 2. Nf3 {[%clk 0:03:01]}  d5 {[%clk 0:02:57]} 3. Bf4 {[%clk 0:03:00]}  g6 {[%clk 0:02:53]} 4. e3 {[%clk 0:03:00]}  Bg7 {[%clk 0:02:53]} 5. Nbd2 {[%clk 0:03:01]}  c5 {[%clk 0:02:52]} 6. c3 {[%clk 0:03:00]}  Qb6 {[%clk 0:02:39]} 7. Qb3 {[%clk 0:02:58]}  c4 {[%clk 0:02:36]} 8. Qa3 {[%clk 0:02:58]}  Nc6 {[%clk 0:02:32]} 9. b3 {[%clk 0:02:58]}  cxb3 {[%clk 0:02:33]} 10. axb3 {[%clk 0:02:57]}  O-O {[%clk 0:02:29]} 11. Be2 {[%clk 0:02:56]}  Bg4 {[%clk 0:02:27]} 12. h3 {[%clk 0:02:54]}  Bxf3 {[%clk 0:02:27]} 13. Bxf3 {[%clk 0:02:51]}  e6 {[%clk 0:02:24]} 14. O-O {[%clk 0:02:51]}  Rfe8 {[%clk 0:02:13]} 15. b4 {[%clk 0:02:41]}  e5 {[%clk 0:02:10]} 16. Bg5 {[%clk 0:02:37]}  e4 {[%clk 0:02:05]} 17. Be2 {[%clk 0:02:36]}  h6 {[%clk 0:02:01]} 18. Bxf6 {[%clk 0:02:32]}  Bxf6 {[%clk 0:02:02]} 19. Nb3 {[%clk 0:02:26]}  Be7 {[%clk 0:01:56]} 20. Qa2 {[%clk 0:02:25]}  Rad8 {[%clk 0:01:48]} 21. Nc5 {[%clk 0:02:23]}  a6 {[%clk 0:01:38]} 22. Rfb1 {[%clk 0:02:22]}  Bxc5 {[%clk 0:01:09]} 23. bxc5 {[%clk 0:02:21]}  Qc7 {[%clk 0:01:09]} 24. c4 {[%clk 0:02:22]}  Ne7 {[%clk 0:00:52]} 25. Rb6 {[%clk 0:02:20]}  dxc4 {[%clk 0:00:32]} 26. Bxc4 {[%clk 0:02:21]}  Rf8 {[%clk 0:00:29]} 27. Rab1 {[%clk 0:02:19]}  Rb8 {[%clk 0:00:28]} 28. Qb3 {[%clk 0:02:19]}  Kg7 {[%clk 0:00:21]} 29. Rxb7 {[%clk 0:02:18]}  Rxb7 {[%clk 0:00:22]} 30. Qxb7 {[%clk 0:02:18]}  Qxb7 {[%clk 0:00:20]} 31. Rxb7 {[%clk 0:02:19]}  Nf5 {[%clk 0:00:18]} 32. Bxa6 {[%clk 0:02:16]} 1-0


[Site "https://www.chess.com"]